[Event "Vener-dì-Lampo"]
[Site "Chess.com"]
[Date "2020.05.01"]
[Round "1"]
[White "mr6701"]
[Black "sirmale49"]
[Result "1-0"]
[WhiteElo "1928"]
[BlackElo "1350"]
[TimeControl "300+2"]
[EndTime "11:33:16 PDT"]
[Termination "mr6701 ha vinto per abbandono"]

1. e4 {[%clk 0:05:00.7]} 1... e5 {[%clk 0:04:52.9]} 2. d4 {[%clk 0:04:58.3]}
2... exd4 {[%clk 0:04:51.7]} 3. c3 {[%clk 0:04:58.4]} 3... dxc3 {[%clk
0:04:40.4]} 4. Bc4 {[%clk 0:04:58.7]} 4... Qf6 {[%clk 0:04:33]} 5. Nxc3 {[%clk
0:04:57.9]} 5... Bc5 {[%clk 0:04:32.7]} 6. Nf3 {[%clk 0:04:56.2]} 6... Nc6
{[%clk 0:04:31.5]} 7. Nd5 {[%clk 0:04:53.2]} 7... Qd8 {[%clk 0:04:19.7]} 8. Bg5
{[%clk 0:04:42.6]} 8... Nf6 {[%clk 0:04:15.6]} 9. e5 {[%clk 0:04:42.5]} 9...
Nxe5 {[%clk 0:04:03.1]} 10. Nxe5 {[%clk 0:04:42.5]} 10... Qe7 {[%clk 0:04:03.4]}
1-0

[Event "Vener-dì-Lampo"]
[Site "Chess.com"]
[Date "2020.05.01"]
[Round "1"]
[White "rob_fio"]
[Black "pedrak"]
[Result "0-1"]
[WhiteElo "1721"]
[BlackElo "2018"]
[TimeControl "300+2"]
[EndTime "11:37:55 PDT"]
[Termination "pedrak ha vinto per abbandono"]

1. d4 {[%clk 0:05:00]} 1... Nf6 {[%clk 0:04:59.8]} 2. e3 {[%clk 0:05:01.2]} 2...
d6 {[%clk 0:05:00.5]} 3. Bd3 {[%clk 0:05:02.5]} 3... g6 {[%clk 0:05:01]} 4. f4
{[%clk 0:05:03.5]} 4... Bg7 {[%clk 0:05:01.5]} 5. Nf3 {[%clk 0:05:04.7]} 5...
O-O {[%clk 0:05:02.2]} 6. Nbd2 {[%clk 0:05:06.1]} 6... Nc6 {[%clk 0:04:54]} 7.
c3 {[%clk 0:05:06.4]} 7... Re8 {[%clk 0:04:52]} 8. O-O {[%clk 0:05:07.2]} 8...
e5 {[%clk 0:04:52.4]} 9. Bc2 {[%clk 0:05:08.1]} 9... e4 {[%clk 0:04:47.2]} 10.
Ne1 {[%clk 0:05:05.2]} 10... d5 {[%clk 0:04:46.7]} 11. h3 {[%clk 0:05:03.2]}
11... Ne7 {[%clk 0:04:44.4]} 12. Rf2 {[%clk 0:04:56]} 12... Nf5 {[%clk
0:04:44.8]} 13. Nf1 {[%clk 0:04:54.4]} 13... c6 {[%clk 0:04:40.5]} 14. Qd2
{[%clk 0:04:53.8]} 14... Nd6 {[%clk 0:04:33.6]} 15. b3 {[%clk 0:04:53.2]} 15...
Qe7 {[%clk 0:04:30.5]} 16. Bd1 {[%clk 0:04:53]} 16... h5 {[%clk 0:04:26.3]} 17.
Kh1 {[%clk 0:04:49]} 17... Be6 {[%clk 0:04:21.2]} 18. Nh2 {[%clk 0:04:49]} 18...
Qd7 {[%clk 0:04:21.4]} 19. Be2 {[%clk 0:04:37.5]} 19... Bh6 {[%clk 0:04:11]} 20.
Bf1 {[%clk 0:04:36.3]} 20... Bf8 {[%clk 0:04:05.3]} 21. Nc2 {[%clk 0:04:33.7]}
21... Nf5 {[%clk 0:04:05.8]} 22. Kg1 {[%clk 0:04:32.1]} 22... Ng3 {[%clk
0:04:05.8]} 23. Nb4 {[%clk 0:04:26.3]} 23... Kg7 {[%clk 0:04:03.9]} 24. Qb2
{[%clk 0:04:21.9]} 24... a5 {[%clk 0:03:56.4]} 25. Nc2 {[%clk 0:04:20.9]} 25...
Bd6 {[%clk 0:03:53.6]} 26. Bd2 {[%clk 0:04:20.7]} 26... Rh8 {[%clk 0:03:53.8]}
27. Be1 {[%clk 0:04:21.6]} 27... Nxf1 {[%clk 0:03:49.8]} 28. Rxf1 {[%clk
0:04:21]} 28... Bxh3 {[%clk 0:03:49.6]} 29. gxh3 {[%clk 0:04:22.9]} 29... Qxh3
{[%clk 0:03:50.4]} 30. Rf2 {[%clk 0:04:15.8]} 30... Ng4 {[%clk 0:03:50.9]} 31.
Nxg4 {[%clk 0:04:16.8]} 31... hxg4 {[%clk 0:03:51.7]} 32. Rg2 {[%clk 0:04:10.2]}
32... Qh1+ {[%clk 0:03:42.9]} 33. Kf2 {[%clk 0:04:11.4]} 33... Rh3 {[%clk
0:03:43.5]} 34. Ke2 {[%clk 0:03:34.7]} 34... Qxg2+ {[%clk 0:03:43.6]} 35. Kd1
{[%clk 0:03:34.7]} 35... Rxe3 {[%clk 0:03:39.5]} 36. Kc1 {[%clk 0:03:31.4]}
36... Re2 {[%clk 0:03:38.5]} 37. a4 {[%clk 0:03:28.3]} 37... Bxf4+ {[%clk
0:03:38.5]} 38. Kb1 {[%clk 0:03:29.2]} 38... Qf3 {[%clk 0:03:19.1]} 39. Ka2
{[%clk 0:03:24.3]} 39... g3 {[%clk 0:03:19.3]} 40. Bxg3 {[%clk 0:03:14.9]} 40...
Bxg3 {[%clk 0:03:19.7]} 41. c4 {[%clk 0:03:16.8]} 41... Qd3 {[%clk 0:03:17.1]}
42. cxd5 {[%clk 0:03:13.5]} 42... Rxc2 {[%clk 0:03:16.9]} 43. Rb1 {[%clk
0:03:13.4]} 43... Rxb2+ {[%clk 0:03:17.3]} 44. Rxb2 {[%clk 0:03:15.3]} 44...
Qxd4 {[%clk 0:03:18.2]} 45. dxc6 {[%clk 0:03:16.4]} 45... bxc6 {[%clk
0:03:18.6]} 46. Ka3 {[%clk 0:03:14.9]} 46... Bd6+ {[%clk 0:03:17.5]} 47. Ka2
{[%clk 0:03:15.8]} 47... Rb8 {[%clk 0:03:18.3]} 48. Rc2 {[%clk 0:03:16.2]} 48...
Be5 {[%clk 0:03:15.2]} 0-1

[Event "Vener-dì-Lampo"]
[Site "Chess.com"]
[Date "2020.05.01"]
[Round "1"]
[White "laremaro"]
[Black "riccardocanossa"]
[Result "1-0"]
[WhiteElo "1752"]
[BlackElo "1156"]
[TimeControl "300+2"]
[EndTime "11:38:31 PDT"]
[Termination "laremaro ha vinto per abbandono"]

1. e4 {[%clk 0:05:00]} 1... e5 {[%clk 0:04:58.8]} 2. Nf3 {[%clk 0:04:57.9]} 2...
Nc6 {[%clk 0:04:57.7]} 3. Bb5 {[%clk 0:04:57.8]} 3... a6 {[%clk 0:04:54.5]} 4.
Ba4 {[%clk 0:04:57.6]} 4... b5 {[%clk 0:04:52.7]} 5. Bb3 {[%clk 0:04:48.4]} 5...
Nf6 {[%clk 0:04:51.6]} 6. d3 {[%clk 0:04:47.7]} 6... Bc5 {[%clk 0:04:50.7]} 7.
O-O {[%clk 0:04:46.8]} 7... h6 {[%clk 0:04:47.6]} 8. Nxe5 {[%clk 0:04:45.2]}
8... Nxe5 {[%clk 0:04:46.2]} 9. d4 {[%clk 0:04:45.6]} 9... Bxd4 {[%clk
0:04:47.3]} 10. Qxd4 {[%clk 0:04:45.8]} 10... Nc6 {[%clk 0:04:45.7]} 11. Qd3
{[%clk 0:04:35.5]} 11... d6 {[%clk 0:04:36.7]} 12. a4 {[%clk 0:04:13.9]} 12...
bxa4 {[%clk 0:04:23.9]} 13. Bxa4 {[%clk 0:04:12.4]} 13... Bd7 {[%clk 0:04:18.2]}
14. f4 {[%clk 0:04:01.3]} 14... O-O {[%clk 0:04:14.8]} 15. Nc3 {[%clk
0:04:02.2]} 15... Nb4 {[%clk 0:03:48.7]} 16. Qe2 {[%clk 0:03:45.1]} 16... Bxa4
{[%clk 0:03:28.6]} 17. Rxa4 {[%clk 0:03:44.4]} 17... Nc6 {[%clk 0:03:27.5]} 18.
Rxa6 {[%clk 0:03:37]} 18... Qd7 {[%clk 0:03:04.9]} 19. Be3 {[%clk 0:03:22.5]}
19... Rfe8 {[%clk 0:02:58.4]} 20. Rxa8 {[%clk 0:03:08.5]} 20... Rxa8 {[%clk
0:02:57.6]} 21. Rd1 {[%clk 0:03:05.1]} 21... Re8 {[%clk 0:02:53.8]} 22. e5
{[%clk 0:03:02.8]} 22... Nh7 {[%clk 0:02:41.9]} 23. Qf3 {[%clk 0:02:53.6]} 23...
Qe6 {[%clk 0:02:13.3]} 24. Qxc6 {[%clk 0:02:39]} 24... dxe5 {[%clk 0:02:08.1]}
25. Qxe6 {[%clk 0:02:38.8]} 25... Rxe6 {[%clk 0:02:08.2]} 26. Rd8+ {[%clk
0:02:34.1]} 26... Nf8 {[%clk 0:02:06.4]} 27. Bc5 {[%clk 0:02:31.9]} 27... exf4
{[%clk 0:01:46.9]} 28. Rxf8+ {[%clk 0:02:20.3]} 28... Kh7 {[%clk 0:01:47]} 29.
Kf2 {[%clk 0:02:19.6]} 1-0

[Event "Vener-dì-Lampo"]
[Site "Chess.com"]
[Date "2020.05.01"]
[Round "1"]
[White "SanSecondoPR"]
[Black "GB86_CHESS"]
[Result "1-0"]
[WhiteElo "1322"]
[BlackElo "1673"]
[TimeControl "300+2"]
[EndTime "11:39:52 PDT"]
[Termination "SanSecondoPR ha vinto per abbandono"]

1. e4 {[%clk 0:04:58.4]} 1... c5 {[%clk 0:04:51.2]} 2. Bc4 {[%clk 0:04:55.6]}
2... d6 {[%clk 0:04:48.7]} 3. Qh5 {[%clk 0:04:50.2]} 3... e6 {[%clk 0:04:41.1]}
4. Nf3 {[%clk 0:04:39.9]} 4... Nf6 {[%clk 0:04:33.7]} 5. Qh4 {[%clk 0:04:38.5]}
5... Be7 {[%clk 0:04:33.7]} 6. O-O {[%clk 0:04:30.7]} 6... Nc6 {[%clk
0:04:33.2]} 7. Bb5 {[%clk 0:04:23.7]} 7... Bd7 {[%clk 0:04:28.9]} 8. d3 {[%clk
0:04:12.2]} 8... a6 {[%clk 0:04:29.5]} 9. Bxc6 {[%clk 0:04:02.2]} 9... Bxc6
{[%clk 0:04:28.8]} 10. Nc3 {[%clk 0:04:00]} 10... Nd5 {[%clk 0:02:56.4]} 11. Qg3
{[%clk 0:03:52.1]} 11... Nxc3 {[%clk 0:02:54.7]} 12. bxc3 {[%clk 0:03:34.6]}
12... Bf6 {[%clk 0:02:55.2]} 13. Re1 {[%clk 0:03:07.2]} 13... O-O {[%clk
0:02:55.5]} 14. Bg5 {[%clk 0:02:59.8]} 14... Bxg5 {[%clk 0:02:48.6]} 15. Nxg5
{[%clk 0:02:58.2]} 15... h6 {[%clk 0:02:48.5]} 16. Nh3 {[%clk 0:02:54.2]} 16...
Qf6 {[%clk 0:02:49.3]} 17. Rab1 {[%clk 0:02:36.1]} 17... Qxc3 {[%clk 0:02:30.4]}
18. Qxd6 {[%clk 0:02:16.9]} 18... Qxc2 {[%clk 0:01:40.5]} 19. Qg3 {[%clk
0:02:11.2]} 19... Qxa2 {[%clk 0:01:38.5]} 20. Nf4 {[%clk 0:01:57.1]} 20... Rad8
{[%clk 0:01:18.9]} 21. Nh5 {[%clk 0:01:53.6]} 21... g6 {[%clk 0:01:20]} 22. Rbd1
{[%clk 0:01:39.5]} 1-0

[Event "Vener-dì-Lampo"]
[Site "Chess.com"]
[Date "2020.05.01"]
[Round "2"]
[White "sirmale49"]
[Black "rob_fio"]
[Result "0-1"]
[WhiteElo "1348"]
[BlackElo "1723"]
[TimeControl "300+2"]
[EndTime "11:48:59 PDT"]
[Termination "rob_fio ha vinto per tempo"]

1. e4 {[%clk 0:05:01.9]} 1... d6 {[%clk 0:05:01.9]} 2. f4 {[%clk 0:05:01.2]}
2... Nf6 {[%clk 0:05:03.2]} 3. Nc3 {[%clk 0:04:59.4]} 3... Nbd7 {[%clk
0:05:04.7]} 4. Nf3 {[%clk 0:04:58.8]} 4... e5 {[%clk 0:05:04.9]} 5. d3 {[%clk
0:04:51.2]} 5... c6 {[%clk 0:05:05.3]} 6. g3 {[%clk 0:04:48.9]} 6... Be7 {[%clk
0:05:06.5]} 7. Bg2 {[%clk 0:04:48.9]} 7... Qc7 {[%clk 0:05:07.6]} 8. O-O {[%clk
0:04:43.7]} 8... h6 {[%clk 0:05:08.5]} 9. f5 {[%clk 0:04:31.4]} 9... Ng4 {[%clk
0:05:06.6]} 10. h3 {[%clk 0:04:26.1]} 10... Qb6+ {[%clk 0:05:03.9]} 11. d4
{[%clk 0:03:55.7]} 11... exd4 {[%clk 0:04:52.2]} 12. Qxd4 {[%clk 0:03:42.8]}
12... Qxd4+ {[%clk 0:04:49.4]} 13. Nxd4 {[%clk 0:03:39.6]} 13... Nge5 {[%clk
0:04:44.9]} 14. Bf4 {[%clk 0:03:32.5]} 14... Bf6 {[%clk 0:04:45.1]} 15. Nce2
{[%clk 0:03:18.3]} 15... O-O {[%clk 0:04:45.2]} 16. b3 {[%clk 0:02:51.9]} 16...
c5 {[%clk 0:04:45.4]} 17. Nb5 {[%clk 0:02:09.5]} 17... Be7 {[%clk 0:04:44.7]}
18. Nc7 {[%clk 0:02:01.2]} 18... Rb8 {[%clk 0:04:44.6]} 19. Nd5 {[%clk
0:02:00.1]} 19... Bd8 {[%clk 0:04:40.3]} 20. c4 {[%clk 0:01:55.3]} 20... b6
{[%clk 0:04:41]} 21. Rad1 {[%clk 0:01:52.6]} 21... Bb7 {[%clk 0:04:39.2]} 22.
Nec3 {[%clk 0:01:48.9]} 22... Bxd5 {[%clk 0:04:29.4]} 23. Nxd5 {[%clk 0:01:46]}
23... a6 {[%clk 0:04:28.7]} 24. Bf3 {[%clk 0:01:14.2]} 24... b5 {[%clk
0:04:08.9]} 25. Be2 {[%clk 0:00:53]} 25... b4 {[%clk 0:04:05.2]} 26. g4 {[%clk
0:00:43.3]} 26... Rc8 {[%clk 0:04:04.5]} 27. Kg2 {[%clk 0:00:32.7]} 27... Nb8
{[%clk 0:04:05.1]} 28. Kg3 {[%clk 0:00:25.4]} 28... Nbc6 {[%clk 0:04:06]} 29.
Be3 {[%clk 0:00:17.8]} 29... Nd7 {[%clk 0:04:00.6]} 30. g5 {[%clk 0:00:13.9]}
30... hxg5 {[%clk 0:03:58.4]} 0-1

[Event "Vener-dì-Lampo"]
[Site "Chess.com"]
[Date "2020.05.01"]
[Round "2"]
[White "SanSecondoPR"]
[Black "mr6701"]
[Result "0-1"]
[WhiteElo "1322"]
[BlackElo "1928"]
[TimeControl "300+2"]
[EndTime "11:49:18 PDT"]
[Termination "mr6701 ha vinto per scaccomatto"]

1. e4 {[%clk 0:04:55.3]} 1... d5 {[%clk 0:05:00.6]} 2. Nf3 {[%clk 0:04:54.6]}
2... dxe4 {[%clk 0:05:00.8]} 3. Ng5 {[%clk 0:04:54.2]} 3... Bf5 {[%clk
0:05:02.3]} 4. Be2 {[%clk 0:04:48]} 4... h6 {[%clk 0:05:00.1]} 5. g4 {[%clk
0:04:35.7]} 5... Bg6 {[%clk 0:04:30.5]} 6. Nh3 {[%clk 0:04:33.2]} 6... e5 {[%clk
0:04:31.7]} 7. c3 {[%clk 0:04:21.6]} 7... Bc5 {[%clk 0:04:32.4]} 8. d4 {[%clk
0:04:10.9]} 8... exd4 {[%clk 0:04:33]} 9. Qa4+ {[%clk 0:04:00.6]} 9... Nc6
{[%clk 0:04:30]} 10. Bf4 {[%clk 0:03:35.9]} 10... Qh4 {[%clk 0:04:04.7]} 11.
cxd4 {[%clk 0:03:00.3]} 11... Bxd4 {[%clk 0:03:55.8]} 12. Be3 {[%clk 0:02:19.7]}
12... Bxe3 {[%clk 0:03:52.5]} 13. Rf1 {[%clk 0:02:08]} 13... O-O-O {[%clk
0:03:31.7]} 14. Ng1 {[%clk 0:01:59]} 14... Bd4 {[%clk 0:03:15.3]} 15. Bb5 {[%clk
0:01:42.3]} 15... Nge7 {[%clk 0:03:13.3]} 16. Ne2 {[%clk 0:01:29.3]} 16... Bxb2
{[%clk 0:03:07.1]} 17. Nbc3 {[%clk 0:00:48.6]} 17... Bxa1 {[%clk 0:03:06.1]} 18.
Bxc6 {[%clk 0:00:39.7]} 18... Bxc3+ {[%clk 0:02:53.8]} 19. Nxc3 {[%clk
0:00:33.6]} 19... Nxc6 {[%clk 0:02:55.1]} 20. Nb5 {[%clk 0:00:27]} 20... e3
{[%clk 0:02:45.6]} 21. Nxa7+ {[%clk 0:00:23.7]} 21... Nxa7 {[%clk 0:02:45]} 22.
Qxa7 {[%clk 0:00:16]} 22... exf2+ {[%clk 0:02:45.5]} 23. Rxf2 {[%clk 0:00:11.2]}
23... Rhe8+ {[%clk 0:02:39.5]} 24. Kf1 {[%clk 0:00:09.1]} 24... Rd1+ {[%clk
0:02:39]} 25. Kg2 {[%clk 0:00:07.7]} 25... Qxg4# {[%clk 0:02:38.4]} 0-1

[Event "Vener-dì-Lampo"]
[Site "Chess.com"]
[Date "2020.05.01"]
[Round "2"]
[White "pedrak"]
[Black "laremaro"]
[Result "1-0"]
[WhiteElo "2021"]
[BlackElo "1749"]
[TimeControl "300+2"]
[EndTime "11:49:55 PDT"]
[Termination "pedrak ha vinto per abbandono"]

1. Nf3 {[%clk 0:05:01.9]} 1... d5 {[%clk 0:04:59.8]} 2. g3 {[%clk 0:05:02.1]}
2... Nf6 {[%clk 0:04:53.6]} 3. Bg2 {[%clk 0:05:02.7]} 3... c6 {[%clk 0:04:51.5]}
4. O-O {[%clk 0:05:03]} 4... g6 {[%clk 0:04:51.5]} 5. d3 {[%clk 0:05:03.6]} 5...
Bg4 {[%clk 0:04:49.7]} 6. c3 {[%clk 0:05:03.1]} 6... Bxf3 {[%clk 0:04:49.4]} 7.
Bxf3 {[%clk 0:05:03.3]} 7... e6 {[%clk 0:04:50.3]} 8. Nd2 {[%clk 0:05:03]} 8...
Bg7 {[%clk 0:04:51.3]} 9. e4 {[%clk 0:05:02.3]} 9... Nbd7 {[%clk 0:04:36.5]} 10.
Qe2 {[%clk 0:05:00.9]} 10... O-O {[%clk 0:04:35.4]} 11. e5 {[%clk 0:05:01.2]}
11... Ne8 {[%clk 0:04:35.8]} 12. d4 {[%clk 0:05:00.9]} 12... c5 {[%clk
0:04:34.8]} 13. Bg2 {[%clk 0:04:57.5]} 13... cxd4 {[%clk 0:04:32.6]} 14. cxd4
{[%clk 0:04:58.1]} 14... Rc8 {[%clk 0:04:32.3]} 15. Nb3 {[%clk 0:04:51.5]} 15...
Qc7 {[%clk 0:04:25.6]} 16. Be3 {[%clk 0:04:47.8]} 16... Qc2 {[%clk 0:04:24.2]}
17. Rfe1 {[%clk 0:04:47.2]} 17... Nb6 {[%clk 0:04:12.5]} 18. Nc5 {[%clk
0:04:44.3]} 18... Qxe2 {[%clk 0:04:09.9]} 19. Rxe2 {[%clk 0:04:45.1]} 19... Rb8
{[%clk 0:03:51.1]} 20. a4 {[%clk 0:04:43.4]} 20... a5 {[%clk 0:03:30.9]} 21. b4
{[%clk 0:04:38.8]} 21... Nc7 {[%clk 0:03:00.6]} 22. bxa5 {[%clk 0:04:37.4]}
22... Nc4 {[%clk 0:03:01.3]} 23. Nd7 {[%clk 0:04:36.5]} 23... Na6 {[%clk
0:03:00.3]} 24. Nxf8 {[%clk 0:04:31.6]} 24... Bxf8 {[%clk 0:02:59.3]} 25. Rb1
{[%clk 0:04:31.1]} 25... Nxa5 {[%clk 0:02:45.1]} 26. Bd2 {[%clk 0:04:28.2]}
26... Nc4 {[%clk 0:02:42.3]} 27. Bg5 {[%clk 0:04:19.6]} 27... Nb4 {[%clk
0:02:37.4]} 28. Bd2 {[%clk 0:04:04.7]} 28... Nc6 {[%clk 0:02:30.4]} 29. Be3
{[%clk 0:03:58.2]} 29... b6 {[%clk 0:02:21]} 30. Ra2 {[%clk 0:03:55.5]} 30...
Ra8 {[%clk 0:02:13.1]} 31. Bf1 {[%clk 0:03:55.9]} 31... N6a5 {[%clk 0:02:10.8]}
32. Rb5 {[%clk 0:03:50]} 32... Be7 {[%clk 0:02:01.2]} 33. Bd2 {[%clk 0:03:49.4]}
33... Bd8 {[%clk 0:01:58.9]} 34. Bxa5 {[%clk 0:03:49.3]} 34... Nxa5 {[%clk
0:01:54.5]} 35. f4 {[%clk 0:03:36.3]} 35... Rc8 {[%clk 0:01:53.7]} 36. Kf2
{[%clk 0:03:33.6]} 36... Rc1 {[%clk 0:01:47.1]} 37. Bd3 {[%clk 0:03:28.5]} 37...
Nc4 {[%clk 0:01:39.5]} 38. Bxc4 {[%clk 0:03:28.7]} 38... Rxc4 {[%clk 0:01:38.9]}
39. Ke3 {[%clk 0:03:19]} 39... Rc3+ {[%clk 0:01:36.3]} 40. Kd2 {[%clk
0:03:18.8]} 40... Rc4 {[%clk 0:01:37.2]} 41. a5 {[%clk 0:03:13.7]} 41... Rxd4+
{[%clk 0:00:59.4]} 42. Ke3 {[%clk 0:03:14.1]} 42... Rc4 {[%clk 0:00:52.9]} 43.
axb6 {[%clk 0:03:00.3]} 43... Rc8 {[%clk 0:00:52.6]} 44. b7 {[%clk 0:03:00.7]}
44... Rb8 {[%clk 0:00:52.5]} 45. Ra8 {[%clk 0:03:01.2]} 45... Bc7 {[%clk
0:00:53.3]} 46. Rxb8+ {[%clk 0:03:01.7]} 46... Bxb8 {[%clk 0:00:54.4]} 47. Rc5
{[%clk 0:03:03]} 1-0

[Event "Vener-dì-Lampo"]
[Site "Chess.com"]
[Date "2020.05.01"]
[Round "3"]
[White "mr6701"]
[Black "pedrak"]
[Result "1-0"]
[WhiteElo "1938"]
[BlackElo "2011"]
[TimeControl "300+2"]
[EndTime "11:55:09 PDT"]
[Termination "mr6701 ha vinto per abbandono"]

1. e4 {[%clk 0:05:01.9]} 1... d6 {[%clk 0:05:00.2]} 2. d4 {[%clk 0:05:02.3]}
2... Nf6 {[%clk 0:05:00.8]} 3. Nc3 {[%clk 0:05:03.2]} 3... g6 {[%clk 0:05:01.4]}
4. Bg5 {[%clk 0:05:04.2]} 4... Bg7 {[%clk 0:05:01.8]} 5. Qd2 {[%clk 0:05:05.4]}
5... h6 {[%clk 0:05:01.6]} 6. Bf4 {[%clk 0:05:05.6]} 6... Nbd7 {[%clk
0:04:56.3]} 7. f3 {[%clk 0:05:06.7]} 7... e5 {[%clk 0:04:56.5]} 8. Be3 {[%clk
0:05:06]} 8... c6 {[%clk 0:04:54.5]} 9. Nge2 {[%clk 0:05:02.8]} 9... Qc7 {[%clk
0:04:55.1]} 10. g4 {[%clk 0:05:00.1]} 10... Nb6 {[%clk 0:04:54.7]} 11. Ng3
{[%clk 0:05:00]} 11... h5 {[%clk 0:04:46.4]} 12. gxh5 {[%clk 0:04:56.8]} 12...
Nxh5 {[%clk 0:04:47]} 13. Nxh5 {[%clk 0:04:53.3]} 13... Rxh5 {[%clk 0:04:47.4]}
14. O-O-O {[%clk 0:04:44.9]} 14... Bd7 {[%clk 0:04:43.1]} 15. Be2 {[%clk
0:04:44.1]} 15... Rh8 {[%clk 0:04:20]} 16. dxe5 {[%clk 0:04:41.9]} 16... Bxe5
{[%clk 0:04:18.1]} 17. f4 {[%clk 0:04:41.5]} 17... Bg7 {[%clk 0:04:16.7]} 18.
Bd4 {[%clk 0:04:34.6]} 18... Bxd4 {[%clk 0:04:10.4]} 19. Qxd4 {[%clk 0:04:36.5]}
19... Ke7 {[%clk 0:04:08.7]} 20. e5 {[%clk 0:04:09.3]} 20... d5 {[%clk
0:04:07.6]} 21. Qc5+ {[%clk 0:03:59.7]} 21... Ke8 {[%clk 0:04:03.9]} 22. Nb5
{[%clk 0:03:58.8]} 22... Qb8 {[%clk 0:03:24.5]} 23. Nd6+ {[%clk 0:03:56.7]}
23... Kd8 {[%clk 0:03:25.3]} 24. Nxf7+ {[%clk 0:03:57.4]} 24... Kc7 {[%clk
0:03:25.3]} 25. Qd6+ {[%clk 0:03:46.6]} 25... Kc8 {[%clk 0:03:26.1]} 26. Nxh8
{[%clk 0:03:47.8]} 26... Qxd6 {[%clk 0:03:26.9]} 27. exd6 {[%clk 0:03:49.7]}
27... Nc4 {[%clk 0:03:27.2]} 28. Bxc4 {[%clk 0:03:49]} 28... dxc4 {[%clk
0:03:28.1]} 29. Nxg6 {[%clk 0:03:50.1]} 29... Bf5 {[%clk 0:03:28.2]} 30. Ne7+
{[%clk 0:03:51.2]} 1-0

[Event "Vener-dì-Lampo"]
[Site "Chess.com"]
[Date "2020.05.01"]
[Round "3"]
[White "riccardocanossa"]
[Black "rob_fio"]
[Result "0-1"]
[WhiteElo "1150"]
[BlackElo "1724"]
[TimeControl "300+2"]
[EndTime "11:58:20 PDT"]
[Termination "rob_fio ha vinto per abbandono"]

1. d4 {[%clk 0:05:01.9]} 1... d6 {[%clk 0:05:01.9]} 2. c4 {[%clk 0:05:02]} 2...
Nf6 {[%clk 0:05:03.5]} 3. Nc3 {[%clk 0:05:01.1]} 3... Nbd7 {[%clk 0:05:04.8]} 4.
Nf3 {[%clk 0:05:01]} 4... e5 {[%clk 0:05:06.2]} 5. Bg5 {[%clk 0:04:44.9]} 5...
Be7 {[%clk 0:05:06.9]} 6. e3 {[%clk 0:04:41.4]} 6... c6 {[%clk 0:05:07.9]} 7.
Bd3 {[%clk 0:04:39.1]} 7... Qc7 {[%clk 0:05:07.2]} 8. O-O {[%clk 0:04:31.4]}
8... O-O {[%clk 0:05:06.9]} 9. Qc2 {[%clk 0:04:16]} 9... h6 {[%clk 0:05:06.7]}
10. Bxf6 {[%clk 0:04:15.3]} 10... Nxf6 {[%clk 0:05:07.5]} 11. a3 {[%clk
0:03:53.1]} 11... Bg4 {[%clk 0:05:08]} 12. Qe2 {[%clk 0:03:35.6]} 12... Bd7
{[%clk 0:05:03.4]} 13. b4 {[%clk 0:03:27]} 13... Rab8 {[%clk 0:04:57.4]} 14.
Rac1 {[%clk 0:03:15.8]} 14... Qc8 {[%clk 0:04:57.4]} 15. a4 {[%clk 0:02:53.1]}
15... Bf5 {[%clk 0:04:57.9]} 16. e4 {[%clk 0:02:33.2]} 16... Bg4 {[%clk
0:04:51.7]} 17. h3 {[%clk 0:02:31.6]} 17... Bd7 {[%clk 0:04:44.6]} 18. dxe5
{[%clk 0:02:22.2]} 18... dxe5 {[%clk 0:04:46.5]} 19. Nxe5 {[%clk 0:02:12.6]}
19... Bd6 {[%clk 0:04:46.7]} 20. Nxd7 {[%clk 0:02:08.1]} 20... Qxd7 {[%clk
0:04:48.6]} 21. Bb1 {[%clk 0:01:42.5]} 21... Bxb4 {[%clk 0:04:44.7]} 22. e5
{[%clk 0:01:19.4]} 22... Ne8 {[%clk 0:04:27.8]} 23. Rfd1 {[%clk 0:01:13.7]}
23... Qe7 {[%clk 0:04:28]} 24. Qd3 {[%clk 0:00:58.3]} 24... g6 {[%clk
0:04:27.5]} 25. Qe3 {[%clk 0:00:37.1]} 25... Kg7 {[%clk 0:04:13.8]} 26. Qd4
{[%clk 0:00:18.6]} 26... Bc5 {[%clk 0:03:58.8]} 27. e6+ {[%clk 0:00:14.4]} 27...
Bxd4 {[%clk 0:03:59.1]} 0-1

[Event "Vener-dì-Lampo"]
[Site "Chess.com"]
[Date "2020.05.01"]
[Round "4"]
[White "sirmale49"]
[Black "laremaro"]
[Result "0-1"]
[WhiteElo "1347"]
[BlackElo "1751"]
[TimeControl "300+2"]
[EndTime "12:06:05 PDT"]
[Termination "laremaro ha vinto per tempo"]

1. e4 {[%clk 0:02:28.1]} 1... d5 {[%clk 0:05:00]} 2. e5 {[%clk 0:02:23.9]} 2...
Bf5 {[%clk 0:04:59.5]} 3. d4 {[%clk 0:02:20]} 3... e6 {[%clk 0:04:59.6]} 4. Nc3
{[%clk 0:02:12.8]} 4... c5 {[%clk 0:04:55.2]} 5. Nf3 {[%clk 0:02:12.8]} 5... Nc6
{[%clk 0:04:49.6]} 6. Bb5 {[%clk 0:02:12.2]} 6... Qb6 {[%clk 0:04:37.8]} 7. dxc5
{[%clk 0:01:53]} 7... Bxc5 {[%clk 0:04:31.3]} 8. O-O {[%clk 0:01:46.5]} 8... Ne7
{[%clk 0:04:30.2]} 9. a4 {[%clk 0:01:30.6]} 9... O-O {[%clk 0:04:15.8]} 10. Ng5
{[%clk 0:01:22.5]} 10... h6 {[%clk 0:04:03.6]} 11. Nf3 {[%clk 0:00:41.3]} 11...
a6 {[%clk 0:04:00.7]} 12. Bxc6 {[%clk 0:00:35.5]} 12... Nxc6 {[%clk 0:03:59.3]}
13. b3 {[%clk 0:00:17.9]} 13... Bg4 {[%clk 0:03:56.4]} 14. h3 {[%clk 0:00:14.5]}
14... Bxf3 {[%clk 0:03:54.8]} 15. Qxf3 {[%clk 0:00:07.2]} 15... Nxe5 {[%clk
0:03:56.3]} 16. Qg3 {[%clk 0:00:03.5]} 16... Bd6 {[%clk 0:03:53.8]} 0-1